bitfinex-derivatives/quotes_ETHF0:USTF0_20250910
["timestamp","ask_amount","ask_price","bid_price","bid_amount"]
[1757470378772,0.6208,4318.3,4318.2,0.2905]
[1757470378773,1.23550909,4318.3,4318.2,0.2905]
[1757470379170,1.11500909,4318.3,4318.2,0.504]
[1757470379568,1.11500909,4318.3,4318.2,0.6984]
[1757470380669,1.23550909,4318.3,4318.2,0.2905]
[1757470380867,0.72920909,4318.3,4317.6,1.2436084]
[1757470381070,0.5063,4317.6,4317.5,0.4085]
[1757470381383,0.7413,4317.6,4317.5,0.622]
[1757470381887,0.5063,4317.1,4317.0,0.4085]
[1757470382080,1.76953464,4317.1,4317.0,0.4085]
[1757470383486,1.64903464,4317.1,4317.0,0.622]
[1757470384189,1.53453464,4317.1,4317.0,0.622]
[1757470384491,1.76953464,4317.1,4317.0,0.622]
[1757470384682,1.64903464,4317.1,4317.0,0.622]
[1757470384989,1.64903464,4317.1,4317.0,0.8164]
[1757470385178,1.22113464,4317.1,4317.0,0.8164]
[1757470385376,0.235,4317.1,4317.0,0.8164]
[1757470385581,0.4279,4317.1,4317.0,0.8164]
[1757470385983,1.02823464,4317.2,4317.0,0.8164]
[1757470386182,0.1205,4317.7,4317.0,0.5259]
[1757470386183,0.235,4317.1,4317.0,0.5259]
[1757470386789,0.235,4317.1,4317.0,0.8164]
[1757470388387,1.45613464,4317.1,4317.0,0.8164]
[1757470388591,1.64903464,4317.1,4317.0,0.8164]
[1757470389087,0.3858,4316.6,4316.5,0.6325]
[1757470389285,1.41403464,4316.6,4316.5,0.8269]
[1757470389484,1.02823464,4316.9,4316.8,0.4079]
[1757470389682,1.02823464,4316.9,4316.8,0.6984]
[1757470389889,1.22113464,4316.9,4316.8,0.6984]
[1757470390283,1.57303464,4316.9,4316.8,0.6984]
[1757470390478,1.69353464,4316.9,4316.8,0.2905]
[1757470390684,0.3858,4316.6,4316.5,0.342]
[1757470390878,1.53453464,4316.6,4316.5,0.342]
[1757470391079,1.53453464,4316.6,4316.0,0.1285]
[1757470391283,1.41403464,4316.1,4316.0,0.6325]
[1757470391490,1.64903464,4316.1,4316.0,0.6325]
[1757470391791,1.76953464,4316.1,4316.0,0.6325]
[1757470392291,1.64903464,4316.1,4316.0,0.6325]
[1757470392493,1.64903464,4316.1,4316.0,0.8269]
[1757470394688,33.37,4317.2,4316.0,0.8269]
[1757470394890,1.41403464,4316.8,4316.7,0.2135]
[1757470395194,0.5063,4316.8,4316.7,0.2905]
[1757470395400,0.3858,4316.8,4316.7,0.504]
[1757470395587,1.41403464,4316.8,4316.7,0.504]
[1757470395788,1.53453464,4316.8,4316.7,0.2905]
[1757470396288,1.41403464,4316.8,4316.5,0.1285]
[1757470396493,0.5063,4316.7,4316.6,0.2905]
[1757470397189,0.5063,4316.7,4316.0,0.1285]
[1757470397384,1.41483464,4316.1,4316.0,0.3345]
[1757470397587,1.64983464,4316.1,4316.0,0.3345]
[1757470397895,1.64983464,4316.1,4316.0,0.6371]
[1757470398597,1.64983464,4316.1,4316.0,0.8352]
[1757470399495,1.41483464,4316.1,4316.0,0.8352]
[1757470399793,1.02823464,4316.4,4316.1,0.3026]
[1757470399996,0.235,4316.3,4316.2,0.4041]
[1757470400188,0.235,4316.3,4316.2,0.7067]
[1757470402393,0.235,4316.3,4316.2,0.4041]
[1757470402592,0.235,4316.3,4316.2,0.7067]
[1757470402793,1.02823464,4316.4,4316.3,0.3026]
[1757470403095,1.26323464,4316.4,4316.3,0.7067]
[1757470403594,1.02823464,4316.4,4316.3,0.7067]
[1757470403892,1.26323464,4316.4,4316.3,0.7067]
[1757470406100,1.02823464,4316.4,4316.3,0.7067]
[1757470406294,1.26323464,4316.4,4316.3,0.7067]
[1757470406695,1.02823464,4316.4,4316.3,0.7067]
[1757470406993,1.26323464,4316.4,4316.3,0.7067]
[1757470407396,1.02823464,4316.7,4316.6,0.7067]
[1757470407704,0.235,4316.7,4316.6,0.7067]
[1757470408203,1.45653464,4316.7,4316.6,0.7067]
[1757470408598,1.22153464,4316.7,4316.6,0.7067]
[1757470408799,1.45653464,4316.7,4316.6,0.7067]
[1757470408996,34.39823464,4317.2,4317.1,0.7067]
[1757470409200,34.59153464,4317.2,4317.1,0.7067]
[1757470409500,34.82653464,4317.2,4317.1,0.7067]
[1757470410403,34.63323464,4317.2,4317.1,0.7067]
[1757470411205,34.82653464,4317.2,4317.1,0.7067]
[1757470411501,34.59153464,4317.2,4317.1,0.7067]
[1757470411804,34.82653464,4317.2,4317.1,0.7067]
[1757470412304,34.63323464,4317.2,4317.1,0.7067]
[1757470413994,34.82653464,4317.2,4317.1,0.7067]
[1757470415706,35.01983464,4317.2,4317.1,0.7067]
[1757470417203,34.82653464,4317.2,4317.1,0.7067]
[1757470417811,34.59153464,4317.2,4317.1,0.7067]
[1757470418005,33.7983,4317.2,4317.1,0.7067]
[1757470418407,33.9916,4317.2,4317.1,0.7067]
[1757470419007,33.37,4317.2,4317.1,0.7067]
[1757470419409,33.605,4317.2,4317.1,0.7067]
[1757470420305,33.37,4317.2,4317.1,0.7067]
[1757470420505,33.605,4317.2,4317.1,0.7067]
[1757470421312,33.37,4317.2,4317.1,0.7067]
[1757470421509,33.605,4317.2,4317.1,0.7067]
[1757470421909,33.37,4317.2,4317.1,0.7067]
[1757470422105,33.9916,4317.2,4317.1,0.7067]
[1757470422711,33.7983,4317.2,4317.1,0.7067]
[1757470422914,33.605,4317.2,4317.1,0.7067]
[1757470424110,33.9916,4317.2,4317.1,0.7067]
[1757470425114,0.1933,4317.2,4317.1,0.7067]
[1757470425309,0.4283,4317.2,4317.1,0.7067]
[1757470426113,0.1933,4317.2,4317.1,0.7067]
[1757470426315,0.235,4317.2,4317.1,0.7067]
[1757470427615,0.1948,4317.6,4317.5,0.5291]
[1757470427807,0.4298,4317.6,4317.5,0.8257]
[1757470430907,0.3864,4318.1,4318.0,0.6225]
[1757470431106,0.6214,4318.1,4318.0,0.6225]
[1757470433516,0.6214,4318.1,4318.0,0.8257]
[1757470434814,0.3864,4318.1,4318.0,0.8257]
[1757470435115,0.4282,4318.1,4318.0,0.8257]
[1757470435416,0.6214,4318.1,4318.0,0.8257]
[1757470437411,0.3864,4318.1,4318.0,0.8257]
[1757470437610,0.6214,4318.1,4318.0,0.8257]
[1757470439215,33.374,4318.5,4318.1,0.2966]
[1757470439412,0.1932,4318.2,4318.1,0.7]
[1757470440119,0.3864,4318.2,4318.1,0.4968]
[1757470440313,0.6214,4318.2,4318.1,0.4968]
[1757470440518,0.7422,4318.2,4318.1,0.4968]
[1757470440815,0.6214,4318.2,4318.1,0.4968]
[1757470441217,0.6214,4318.2,4318.1,0.7]
[1757470441807,0.7422,4318.2,4318.1,0.4968]
[1757470442018,0.6214,4318.2,4318.1,0.4968]
[1757470443820,0.6214,4318.2,4318.1,0.7]
[1757470444212,0.3864,4317.6,4317.5,0.6225]
[1757470444419,0.6214,4317.6,4317.5,0.8257]
[1757470445816,1.96041854,4317.6,4317.5,0.2966]
[1757470446022,0.3864,4317.2,4317.0,0.1271]
[1757470446213,0.1932,4317.2,4317.1,0.7]
[1757470446412,0.4282,4317.2,4317.1,0.7]
[1757470446617,0.4282,4317.2,4317.1,1.9436084]
[1757470447421,0.6214,4317.2,4317.1,1.9436084]
[1757470448011,0.7422,4317.2,4317.1,1.5402084]
[1757470448220,0.7422,4317.2,4317.1,0.2966]
[1757470449320,0.7422,4317.2,4317.1,1.5402084]
[1757470449922,0.7422,4317.2,4317.1,0.2966]
[1757470450127,0.6214,4317.2,4317.1,0.7]
[1757470450320,0.6214,4317.2,4317.1,1.9436084]
[1757470450622,0.235,4317.2,4317.1,1.9436084]
[1757470451021,0.4282,4317.2,4317.1,1.9436084]
[1757470453525,0.6214,4317.2,4317.1,1.9436084]
[1757470454429,0.7422,4317.2,4317.1,0.7]
[1757470454631,1.96041854,4317.2,4317.1,0.2966]
[1757470455926,0.5072,4316.9,4316.8,1.2436084]
[1757470456130,0.5072,4316.9,4316.8,0.2966]
[1757470458839,0.3864,4316.9,4316.6,0.3111]
[1757470459033,0.3882,4316.3,4316.1,1.5547084]
[1757470459338,0.7445,4316.2,4316.1,0.3111]
[1757470460736,0.6232,4316.2,4316.1,0.5163]
[1757470460932,0.6232,4316.2,4316.1,0.7302]
[1757470462037,33.37,4316.9,4316.5,0.8582]
[1757470462236,0.4291,4316.8,4316.7,0.4191]
[1757470462538,0.4291,4316.8,4316.7,0.7302]
[1757470462539,0.6232,4316.8,4316.7,0.7302]
[1757470463440,0.3882,4316.2,4316.1,0.5163]
[1757470463641,0.6232,4316.2,4316.1,0.5163]
[1757470464032,0.6232,4316.2,4316.1,0.7302]
[1757470466542,0.235,4316.2,4316.1,0.7302]
[1757470466742,33.5641,4316.9,4316.8,0.7302]
[1757470466943,33.9932,4316.9,4316.8,0.7302]
[1757470468346,33.7582,4316.9,4316.8,0.7302]
[1757470468645,33.9932,4316.9,4316.8,0.7302]
[1757470469337,33.37,4316.9,4316.8,0.7302]
[1757470469642,33.7991,4316.9,4316.8,0.7302]
[1757470470145,33.9932,4316.9,4316.8,0.7302]
[1757470471142,34.1145,4316.9,4316.8,0.3111]
[1757470471842,0.3882,4316.7,4316.6,0.3111]
[1757470472242,0.5095,4316.7,4316.6,0.3111]
[1757470473542,0.5095,4316.7,4316.6,0.5163]
[1757470473944,0.5095,4316.7,4316.6,0.3111]
[1757470474741,0.3882,4316.7,4316.0,1.3693084]
[1757470474951,0.3882,4316.2,4316.1,0.5163]
[1757470475254,0.6232,4316.2,4316.1,0.5163]
[1757470476656,0.6232,4316.2,4316.1,0.7302]
[1757470483349,0.6232,4316.2,4316.1,1.9738084]
[1757470485863,0.4291,4316.2,4316.1,1.9738084]
[1757470486053,0.4291,4316.2,4316.1,0.7302]
[1757470488562,0.235,4316.2,4316.1,1.97294189]
[1757470488862,0.235,4316.2,4316.1,0.7302]
[1757470489263,1.02914319,4316.4,4316.1,0.4191]
[1757470489467,1.02914319,4316.4,4316.3,0.7121]
[1757470489666,1.26414319,4316.4,4316.3,0.7121]
[1757470490665,1.65034319,4316.4,4316.3,0.7121]
[1757470493265,1.41534319,4316.4,4316.3,0.7121]
[1757470493467,1.65034319,4316.4,4316.3,0.7121]
[1757470493968,2.26209872,4316.4,4316.3,0.7121]
[1757470494264,1.65034319,4316.4,4316.3,0.7121]
[1757470494764,2.14139547,4316.4,4316.3,0.7121]
[1757470494962,1.65034319,4316.4,4316.3,0.7121]
[1757470495161,1.26414319,4316.4,4316.3,0.7121]
[1757470495558,1.45724319,4316.4,4316.3,0.7121]
[1757470495763,1.65034319,4316.4,4316.3,0.7121]
[1757470496371,1.41534319,4316.4,4316.3,0.7121]
[1757470496671,1.65034319,4316.4,4316.3,0.7121]
[1757470498069,1.65034319,4316.4,4316.3,0.316]
[1757470498070,1.77104319,4316.4,4316.3,0.316]
[1757470498571,1.77104319,4316.4,4316.3,0.5097]
[1757470499163,0.3862,4316.2,4316.1,1.55943022]
[1757470499367,0.5069,4316.2,4316.1,1.55943022]
[1757470499563,1.02914319,4316.4,4316.1,1.95553022]
[1757470499767,1.65034319,4316.3,4316.2,1.95553022]
[1757470500169,1.65034319,4316.3,4316.2,0.7121]
[1757470500375,1.77104319,4316.3,4316.2,0.316]
[1757470500872,2.26217457,4316.3,4316.2,0.316]
[1757470503778,1.23303138,4316.3,4316.2,0.316]
[1757470503980,2.14147457,4316.3,4316.2,0.5097]
[1757470506184,0.3862,4316.0,4315.9,1.56290353]
[1757470506372,0.3862,4316.0,4315.9,0.31947331]
[1757470506373,1.53604319,4316.0,4315.9,0.31947331]
[1757470506677,1.41534319,4316.0,4315.9,0.51317331]
[1757470506879,0.3862,4316.0,4315.9,0.51317331]
[1757470507074,1.41534319,4316.0,4315.9,0.71557331]
[1757470507268,1.02914319,4316.0,4315.9,0.71557331]
[1757470507478,0.1207,4316.8,4316.5,0.1258]
[1757470507680,1.53604319,4316.6,4316.5,0.4418]
[1757470507881,2.02702079,4316.6,4316.5,0.4418]
[1757470508581,2.02702079,4316.6,4316.5,0.6355]
[1757470508778,2.02702079,4316.6,4316.5,0.8379]
[1757470508779,1.71322079,4316.6,4316.5,0.8379]
[1757470508971,1.94822079,4316.6,4316.5,0.8379]
[1757470510178,1.26414319,4316.6,4316.5,0.8379]
[1757470511383,1.45724319,4316.6,4316.5,0.8379]
[1757470515487,1.77104319,4316.6,4316.5,0.4418]
[1757470515793,1.23389565,4316.6,4316.5,0.316]
[1757470516090,0.1207,4316.5,4316.1,1.24343022]
[1757470516294,0.5069,4316.3,4316.2,0.316]
[1757470516490,0.7419,4316.3,4316.2,0.5097]
[1757470516689,1.77104319,4316.3,4316.2,0.316]
[1757470516894,1.77104319,4316.3,4315.9,1.24690353]
[1757470516895,1.65034319,4316.3,4315.9,1.24690353]
[1757470517187,1.41494319,4316.0,4315.9,0.51217331]
[1757470517384,1.64994319,4316.0,4315.9,0.51217331]
[1757470517789,1.64994319,4316.0,4315.9,0.71697331]
[1757470517993,0.4279,4316.0,4315.9,0.71697331]
[1757470518194,1.45704319,4316.0,4315.9,0.71697331]
[1757470518494,1.22204319,4316.0,4315.9,0.71697331]
[1757470518697,1.45704319,4316.0,4315.9,0.71697331]
[1757470518895,1.64994319,4316.0,4315.9,0.71697331]
[1757470519797,1.77044319,4316.0,4315.9,0.71697331]
[1757470520391,1.64994319,4316.0,4315.9,0.71697331]
[1757470521499,1.64994319,4316.0,4315.9,1.00096544]
[1757470522395,1.64994319,4316.0,4315.9,0.59766544]
[1757470522593,1.77044319,4316.0,4315.9,0.59766544]
[1757470524096,2.26235582,4316.0,4315.9,0.59766544]
[1757470528293,2.26235582,4316.0,4315.9,0.28746544]
[1757470528603,2.26235582,4316.0,4315.9,0.59766544]
[1757470529801,0.49191263,4316.0,4315.9,0.71697331]
[1757470529998,0.72691263,4316.0,4315.9,1.00094883]
[1757470531194,1.52105582,4316.0,4315.9,1.00094883]
[1757470531505,1.75605582,4316.0,4315.9,1.00094883]
[1757470533696,2.26235582,4316.0,4315.9,0.59764883]
[1757470534009,2.26235582,4316.0,4315.9,0.79614883]
[1757470534309,33.5686,4316.9,4316.8,0.7135]
[1757470534611,34.63414319,4316.9,4316.8,0.99747552]
[1757470535300,33.605,4316.9,4316.8,0.99747552]
[1757470535997,33.8036,4316.9,4316.8,0.99747552]
[1757470536306,34.3292,4316.9,4316.8,0.99747552]
[1757470536505,33.605,4316.9,4316.8,0.99747552]
[1757470536706,33.8036,4316.9,4316.8,0.99747552]
[1757470537506,34.3292,4316.9,4316.8,0.2833851]
[1757470540310,35.54796724,4316.9,4316.8,0.2833851]
[1757470543215,35.54796724,4316.9,4316.8,0.7920851]
[1757470543513,35.31296724,4316.9,4316.8,0.7920851]
[1757470543711,35.54796724,4316.9,4316.8,0.7920851]
[1757470545611,35.54796724,4316.9,4316.8,0.5935851]
[1757470546010,35.31296724,4316.9,4316.8,0.7920851]
[1757470546214,35.54796724,4316.9,4316.8,0.5935851]
[1757470546417,35.54796724,4316.9,4316.8,0.2833851]
[1757470548516,36.03588073,4316.9,4316.8,0.2833851]
[1757470548818,2.66588073,4316.9,4316.8,0.28348571]
[1757470549519,1.44711349,4316.9,4316.8,0.28348571]
[1757470549718,2.66588073,4316.9,4316.8,0.28348571]
[1757470550512,2.43088073,4316.9,4316.8,0.28348571]
[1757470550814,2.66488073,4316.9,4316.8,0.28348571]
[1757470552524,0.5841,4316.1,4316.0,0.3215]
[1757470552824,1.87746724,4316.1,4316.0,0.6461]
[1757470553926,1.87746724,4316.1,4316.0,0.8446]
[1757470554121,0.234,4316.1,4316.0,0.8446]
[1757470554322,1.21876724,4316.5,4316.0,0.8446]
[1757470554617,0.2142,4316.2,4316.1,0.5215]
[1757470554922,0.2142,4316.2,4316.1,0.72]
[1757470555519,1.21876724,4316.5,4316.4,0.3985]
[1757470555827,1.45276724,4316.5,4316.4,0.72]
[1757470556023,0.234,4316.5,4316.4,0.72]
[1757470559024,0.2142,4316.5,4316.4,0.72]
[1757470559326,0.4482,4316.5,4316.4,0.72]
[1757470559828,0.6587,4316.5,4316.4,0.72]
[1757470560125,1.43296724,4317.2,4317.1,0.2]
[1757470560428,2.52521081,4317.2,4317.1,0.5215]
[1757470560628,2.52520624,4317.2,4317.1,0.5215]
[1757470560822,2.52520624,4317.2,4317.1,0.3215]
[1757470561128,2.52520624,4317.2,4317.1,0.5215]
[1757470563125,2.52520624,4317.2,4317.1,0.3215]
[1757470564130,2.52520624,4317.2,4317.1,0.5215]
[1757470564333,2.13180624,4317.2,4317.1,0.72]
[1757470564631,2.36580624,4317.2,4317.1,0.72]
[1757470565522,0.702539,4317.2,4317.1,0.72]
[1757470565722,0.722339,4317.2,4317.1,0.72]
[1757470569231,0.722339,4317.2,4316.7,1.24324796]
[1757470569232,2.52520624,4317.2,4316.7,1.24324796]
[1757470569436,2.52520624,4317.2,4316.7,0.2]
[1757470569437,1.64346724,4316.8,4316.7,0.2]
[1757470569629,1.87746724,4316.8,4316.7,0.2]
[1757470569828,1.87746724,4316.8,4316.7,0.5215]
[1757470570238,1.87746724,4316.8,4316.7,0.72]
[1757470571634,2.03686724,4316.8,4316.7,0.72]
[1757470576460,2.52533025,4316.8,4316.7,0.5215]
[1757470576632,2.52533025,4316.8,4316.5,0.1246]
[1757470576944,0.4043,4316.4,4316.3,0.2023]
[1757470577238,1.12676301,4316.4,4316.3,0.7224]
[1757470577738,1.12676301,4316.4,4316.3,0.5186]
[1757470577942,2.50503025,4316.4,4316.3,0.3163]
[1757470578341,2.50503025,4316.4,4316.3,0.5186]
[1757470578935,2.50503025,4316.4,4316.0,0.1246]
[1757470578936,0.4043,4316.2,4316.1,0.3163]
[1757470579141,1.05226301,4316.2,4316.1,0.3163]
[1757470580949,1.05226301,4316.2,4315.9,0.00347331]
[1757470581138,1.78256724,4316.0,4315.9,0.00347331]
[1757470581337,2.27103025,4316.0,4315.9,0.00347331]
[1757470583341,2.15043025,4316.0,4315.9,0.72587331]
[1757470584741,2.15043025,4316.0,4315.9,4.72587331]
[1757470584742,0.48846301,4316.0,4315.9,4.72587331]
[1757470584942,0.234,4316.0,4315.9,4.72587331]
[1757470585347,0.4043,4316.6,4316.5,0.5228]
[1757470585541,0.72188241,4316.6,4316.5,0.5228]
[1757470585942,0.72188241,4316.6,4316.5,0.8391]
[1757470586139,0.93108241,4316.6,4316.5,0.8391]
[1757470586540,0.4432,4316.6,4316.5,0.8391]
[1757470587442,0.2092,4316.6,4316.5,0.8391]
[1757470587743,0.4432,4316.6,4316.5,0.8391]
[1757470587948,0.2092,4316.6,4316.5,0.8391]
[1757470588250,0.4432,4316.6,4316.5,0.8391]
[1757470590240,1.21876724,4316.7,4316.5,0.8391]
[1757470590552,35.00206724,4317.3,4317.2,0.7224]
[1757470590744,35.72388027,4317.3,4317.2,0.7224]
[1757470590946,35.29478027,4317.3,4317.2,0.7224]
[1757470591142,33.379,4317.3,4317.2,0.7224]
[1757470591347,33.613,4317.3,4317.2,0.7224]
[1757470593355,0.00347331,4317.6,4317.5,0.8391]
[1757470593543,0.23747331,4317.6,4317.5,0.8391]
[1757470593845,0.00347331,4317.6,4317.5,0.8391]
[1757470594046,0.00347331,4317.6,4317.5,2.4916997]
[1757470594242,0.234,4317.7,4317.6,0.3163]
[1757470594442,1.21876724,4318.4,4317.6,4.7224]
[1757470594641,1.21876724,4318.4,4318.3,0.7224]
[1757470594850,1.96076724,4318.4,4318.3,0.7224]
[1757470595446,33.6788,4318.7,4318.6,0.4061]
[1757470595737,34.3171,4318.7,4318.6,0.7224]
[1757470599251,34.0831,4318.7,4318.6,0.7224]
[1757470599450,34.3171,4318.7,4318.6,0.7224]
[1757470599850,34.3171,4318.7,4318.6,0.2023]
[1757470600055,34.0831,4318.7,4318.6,0.2023]
[1757470600355,0.7031,4318.4,4318.3,0.5186]
[1757470600555,1.9653204,4318.4,4318.3,0.7224]
[1757470601053,0.9371,4318.4,4318.3,0.7224]
[1757470601256,1.9653204,4318.4,4318.3,0.7224]
[1757470601449,0.7031,4318.4,4318.3,0.7224]
[1757470601650,1.9653204,4318.4,4318.3,0.7224]
[1757470603356,1.9653204,4318.4,4318.2,0.00347331]
[1757470603651,0.7031,4317.6,4317.5,0.5186]
[1757470603855,0.9371,4317.6,4317.5,0.7224]
[1757470604047,1.9653204,4317.6,4317.5,0.7224]
[1757470604956,0.234,4317.6,4317.5,4.8391]
[1757470605854,0.508,4317.9,4317.8,0.4061]
[1757470606052,0.742,4317.9,4317.8,0.7224]
[1757470606252,0.234,4317.9,4317.8,0.7224]
[1757470606459,1.0282204,4318.1,4317.8,0.4061]
[1757470606658,1.5362204,4318.1,4318.0,0.8391]
[1757470606962,0.234,4318.1,4318.0,0.8391]
[1757470607260,1.0282204,4318.4,4318.0,0.5228]
[1757470607453,0.5114,4318.2,4318.1,0.319]
[1757470607648,0.5114,4318.2,4318.1,0.7136]
[1757470607855,0.234,4318.3,4318.1,0.3946]
[1757470608054,0.4428,4318.3,4318.2,0.7136]
[1757470608959,0.7454,4318.3,4318.2,0.7136]
[1757470609162,0.9405,4318.3,4318.2,0.7136]
[1757470609566,0.9405,4318.3,4318.2,0.201]
[1757470609749,0.9405,4318.3,4317.5,0.1167]
[1757470609951,0.9405,4318.3,4317.2,0.52]
[1757470609952,0.4039,4317.3,4317.2,0.52]
[1757470610157,0.6379,4317.3,4317.2,0.52]
[1757470610349,0.6379,4317.3,4317.2,0.7136]
[1757470610554,0.9405,4317.3,4317.2,0.7136]
[1757470612460,0.3026,4317.8,4317.2,4.7136]
[1757470612659,0.1234,4318.5,4318.1,0.7136]
[1757470612660,0.4039,4318.2,4318.1,0.7136]
[1757470612858,0.4428,4318.2,4318.1,0.7136]
[1757470613055,0.9405,4318.2,4318.1,0.7136]
[1757470615051,1.9687204,4318.2,4318.1,0.7136]
[1757470616857,1.9687204,4318.2,4318.1,0.201]
[1757470617457,1.9687204,4318.2,4317.5,0.1231]
[1757470617657,1.9687204,4318.2,4317.6,0.319]
[1757470618059,0.9405,4318.2,4317.6,0.319]
[1757470618262,0.2088,4317.7,4317.6,0.7136]
[1757470618461,1.5648204,4318.2,4317.7,0.319]
[1757470618663,0.2088,4317.8,4317.7,0.7136]
[1757470618965,0.5114,4317.8,4317.7,0.7136]
[1757470620259,0.7065,4317.8,4317.6,1.23926971]
[1757470620459,0.1234,4318.0,4317.5,0.5177]
[1757470620665,0.5114,4318.0,4317.9,0.7136]
[1757470620865,1.0639,4318.0,4317.9,0.201]
[1757470621572,1.0639,4318.0,4317.9,0.7136]
[1757470622163,1.0639,4318.0,4317.6,1.23926971]
[1757470622164,1.0639,4318.0,4317.7,1.23926971]
[1757470622364,0.7065,4317.7,4317.6,1.75926971]
[1757470622859,0.7065,4317.7,4317.6,1.95286971]
[1757470623861,0.7065,4317.7,4317.6,0.7136]
[1757470625358,0.4039,4317.7,4317.2,1.6525997]
[1757470625562,0.4039,4317.3,4317.2,2.3661997]
[1757470625757,0.7065,4317.3,4317.2,0.7136]
[1757470627360,0.7065,4317.3,4317.1,0.00347331]
[1757470627563,0.7065,4317.3,4317.2,0.7136]
[1757470628669,0.7065,4317.3,4317.2,2.37136459]
[1757470628874,0.7065,4317.3,4317.2,0.7136]
[1757470636364,0.5114,4317.3,4317.2,0.7136]
[1757470639576,0.7262,4317.3,4317.2,0.7136]
[1757470640479,1.3491204,4317.5,4317.3,0.2953]
[1757470640779,1.7676204,4317.5,4317.4,1.94955189]
[1757470641179,1.8908204,4317.5,4317.4,1.94955189]
[1757470641481,1.8908204,4317.5,4317.4,1.44725189]
[1757470641779,2.1248204,4317.5,4317.4,1.7297685]
[1757470641979,2.1248204,4317.5,4317.4,2.0250685]
[1757470643580,2.1248204,4317.5,4317.4,1.74255189]
[1757470643785,2.1248204,4317.5,4317.4,2.02500921]
[1757470644179,2.1248204,4317.5,4317.4,0.28245732]
[1757470645385,2.1248204,4317.5,4317.4,2.23200921]
[1757470645583,0.9734,4317.5,4317.4,2.23200921]
[1757470646486,0.9734,4317.5,4317.4,0.98965732]
[1757470648479,2.1248204,4317.5,4317.4,0.48735732]
[1757470649682,2.1248204,4317.5,4317.4,0.28245732]
[1757470649878,6.3564404,4317.5,4317.1,1.2458252]
[1757470650081,0.5417,4317.0,4316.4,1.95306459]
[1757470650380,0.7394,4316.5,4316.4,0.7072]
[1757470651277,0.7394,4316.5,4316.1,1.95306459]
[1757470651278,0.5417,4316.5,4316.1,1.95306459]
[1757470651478,1.7676204,4316.2,4316.1,0.5002]
[1757470651781,0.1232,4316.0,4315.9,1.65776459]
[1757470651978,0.1232,4316.0,4315.8,0.5002]
[1757470651979,0.7394,4315.9,4315.8,0.5002]
[1757470652287,1.7676204,4315.9,4315.8,0.5002]
[1757470652886,1.7676204,4315.9,4315.8,0.2049]
[1757470653885,1.7676204,4315.9,4315.0,0.1286]
[1757470653886,0.7394,4315.3,4315.2,0.2049]
[1757470654089,1.7676204,4315.3,4315.2,0.5002]
[1757470654583,1.7676204,4315.3,4315.2,0.7072]
[1757470656485,0.7394,4315.3,4315.2,0.7072]
[1757470657485,0.5246,4314.7,4314.6,0.7072]
[1757470658879,0.7394,4314.7,4314.6,0.7072]
[1757470659692,1.0282204,4315.3,4314.7,0.2953]
[1757470659888,0.7394,4315.2,4315.1,0.5002]
[1757470660789,0.7394,4315.2,4315.1,0.2049]
[1757470661385,0.7394,4315.2,4315.1,0.5002]
[1757470662085,0.7394,4315.2,4315.1,0.2049]
[1757470664082,0.7394,4315.2,4315.1,0.5002]
[1757470664991,0.7394,4315.2,4315.1,0.7072]
[1757470674389,0.4185,4315.2,4314.8,0.3025]
[1757470674593,0.724,4314.9,4314.8,0.5173]
[1757470674995,0.724,4314.9,4314.8,0.7269]
[1757470676191,0.724,4314.9,4314.8,1.96424799]
[1757470677403,0.724,4314.9,4314.8,0.7269]
[1757470681203,0.724,4314.9,4314.8,2.38466459]
[1757470683301,0.724,4314.9,4314.8,0.7269]
[1757470688008,0.309,4315.2,4314.8,0.95866]
[1757470688211,0.309,4315.2,4315.1,2.38794673]
[1757470688407,0.5131,4315.2,4315.1,2.38794673]
[1757470688707,0.724,4315.2,4315.1,2.38794673]
[1757470689020,0.724,4315.2,4315.1,0.7269]
[1757470689209,0.724,4315.2,4315.1,2.38794673]
[1757470689410,0.724,4315.2,4315.1,0.7269]
[1757470691711,0.724,4315.2,4315.1,2.38794673]
[1757470692012,0.724,4315.2,4315.1,0.7269]
[1757470695118,0.309,4315.1,4315.0,1.66104673]
[1757470695310,0.1216,4315.0,4314.9,1.66104673]
[1757470695511,0.8456,4315.0,4314.9,2.17834673]
[1757470696117,2.06485005,4315.0,4314.9,1.87584673]
[1757470696313,0.309,4314.9,4314.7,1.66104673]
[1757470696525,0.724,4314.8,4314.6,1.96354673]
[1757470696806,0.725,4314.7,4314.6,2.17834673]
[1757470697214,0.5281,4314.5,4314.3,1.66104673]
[1757470697515,0.4059,4314.1,4314.0,0.3096]
[1757470697707,0.7108,4314.1,4314.0,0.5209]
[1757470698216,0.7108,4314.1,4314.0,1.7662428]
[1757470698916,0.7108,4314.1,4314.0,1.9736428]
[1757470699317,0.7108,4314.1,4314.0,0.7283]
[1757470699908,0.5389,4314.4,4314.0,0.8551]
[1757470700114,0.7329,4314.4,4314.3,0.4187]
[1757470700314,0.7329,4314.4,4314.3,0.7283]
[1757470701622,0.9448,4314.4,4314.3,0.7283]
[1757470702020,2.16405005,4314.4,4314.0,0.3096]
[1757470702220,2.16405005,4314.4,4313.9,0.3096]
[1757470702526,0.7108,4313.9,4313.8,1.9736428]
[1757470702824,0.7108,4313.9,4313.8,0.5209]
[1757470703519,0.7108,4313.9,4313.8,0.7283]
[1757470709332,0.4989,4313.9,4313.8,0.7283]
[1757470711034,0.7108,4313.9,4313.8,0.7283]
[1757470711432,0.7108,4313.9,4313.5,0.3096]
[1757470711648,0.3049,4313.8,4313.3,0.3096]
[1757470711846,1.57545005,4314.0,4313.3,0.7283]
[1757470711847,0.194,4313.4,4313.3,0.7283]
[1757470712046,0.4989,4313.4,4313.3,0.7283]
[1757470713846,0.7108,4313.4,4313.3,0.7283]
[1757470716152,0.7108,4313.4,4313.3,0.5209]
[1757470716351,0.7108,4313.4,4313.3,0.7283]
[1757470716555,0.7108,4313.4,4313.3,1.9736428]